Cogmind - Beta 14 @@@ ROGUE MODE // 2025.03.09 @ 10:03:27 Player: toydarian Result: Self-destructed Performance ------------- Evolutions (6) 3000 Regions Visited (14) 2800 Robots Destroyed (133) 665 Value Destroyed (4927) 4927 Prototype IDs (35) 700 Alien Tech Used (2) 400 Bonus (923) 923 TOTAL SCORE: 13415 Bonus ------- High Alert Combat Kills 85 Follower Combat Kills 238 Met Imprinter 300 Met Zhirov 300 Cogmind --------- Core Integrity 94/1150 Matter 136/300 Energy 100/100 System Corruption 9% Temperature Cool (12) Movement Core (500) Ox9 Location -4/Armory Parts ------- > --- POWER (1) -------- (None) > --- PROPULSION (5) --- Improved Gyrokinetic Inverter > --- UTILITY (9) ------ Large Storage Unit Advanced Visual Processing Unit Hacking Suite Advanced Hacking Suite > --- WEAPON (4) ------- Backup Laser III Enhanced Force Lance > --- INVENTORY (15) --- Light Nuclear Core Advanced Cooling System High-capacity Matter Pod (200) Machine Analyzer Enhanced Optical Array Phase Shifter Authchip [Device] Advanced Trap Extractor (0/8) Hacking Drone Bay (1/1) Beamcaster Faulty Advanced KE Penetrator Mass Driver Phasing Sabre Phasing Sabre Peak State ------------ > --- POWER ------------ Reinforced Antimatter Reactor > --- PROPULSION ------- Antigrav System Cooled Gravmag System Cooled Gravmag System Cooled Gravmag System Improved Gyrokinetic Inverter > --- UTILITY ---------- Large Storage Unit Advanced Visual Processing Unit Advanced Sensor Array Advanced Signal Interpreter Improved Melee Analysis Suite Makeshift Light Armor Plating Advanced Hacking Suite Advanced System Shield High-powered Tractor Beam > --- WEAPON ----------- Mass Driver Phasing Sabre Phasing Sabre > --- INVENTORY -------- Advanced Cooling System High-capacity Matter Pod Machine Analyzer Advanced Sensor Array Phase Shifter Experimental Weapon Shielding Hacking Suite Hacking Suite Authchip [Device] Hacking Drone Bay Beamcaster Advanced KE Penetrator Phasing Sabre [Rating: 102] Favorites ----------- Power Micro Fission Core Engine Ion Engine Power Core Micro Fission Core Reactor Reinforced Antimatter Reactor Propulsion Armored Huge Wheel Treads Armored Treads Leg Carbon-fiber Leg Wheel Armored Huge Wheel Hover Unit Cooled Gravmag System Utility Large Storage Unit Device Improved Sensor Array Storage Large Storage Unit Processor Improved Signal Interpreter Hackware Hacking Suite Protection Hardened Light Armor Plating Weapon Autogun Energy Gun Tesla Rifle Ballistic Gun Autogun Ballistic Cannon Mass Driver Launcher Missile Launcher Slashing Weapon Phasing Sabre Piercing Weapon Enhanced Force Lance Build | -11 -10 -9 -8 -7 -7 -6 -5 -5 -5 -5 -5 -4 -4 -4 ------- Run | Yrd Mat Mat Mat Fac Low Zio Pro Fac Upp Upp Zhi Pro Fac Arm Slots Evolved 12 | . . 2 2 2 . . . 4 . . . . 2 . Power . | . . . . . . . . . . . . . . . Propulsion 3 | . . . . . . . . 2 . . . . 1 . Utility 7 | . . . 2 2 . . . 2 . . . . 1 . Weapon 2 | . . 2 . . . . . . . . . . . . Parts Attached 203 | 7 13 2 20 37 3 5 11 38 21 6 7 3 16 14 Power 16 | 1 3 . 1 4 1 1 . 2 1 . . . 1 1 Engine 5 | 1 3 . 1 . . . . . . . . . . . Core 10 | . . . . 4 1 1 . 2 1 . . . . 1 Reactor 1 | . . . . . . . . . . . . . 1 . Propulsion 26 | 2 3 . 5 4 . . . 3 2 . 3 . 3 1 Treads 1 | . . . 1 . . . . . . . . . . . Leg 4 | . . . 2 2 . . . . . . . . . . Wheel 15 | 2 3 . 2 2 . . . 3 2 . . . . 1 Hover 6 | . . . . . . . . . . . 3 . 3 . Flight . | . . . . . . . . . . . . . . . Utility 72 | 2 3 . 8 15 1 1 5 14 5 1 4 1 7 5 Device 23 | 1 2 . 3 3 1 . 4 5 1 . 1 1 . 1 Storage 4 | 1 1 . 1 1 . . . . . . . . . . Processor 9 | . . . 1 3 . . . 1 . 1 . . 3 . Hackware 7 | . . . . 1 . . . 2 . . 1 . . 3 Protection 29 | . . . 3 7 . 1 1 6 4 . 2 . 4 1 Artifact . | . . . . . . . . . . . . . . . Weapon 89 | 2 4 2 6 14 1 3 6 19 13 5 . 2 5 7 Energy Gun 7 | 1 . . . . . . . 3 3 . . . . . Energy Cannon . | . . . . . . . . . . . . . . . Ballistic Gun 44 | 1 4 2 5 12 1 1 5 8 2 . . . 1 2 Ballistic Cannon 2 | . . . . . . . . . . . . . 2 . Launcher 11 | . . . . . . . 1 1 7 . . 2 . . Special Weapon . | . . . . . . . . . . . . . . . Impact Weapon . | . . . . . . . . . . . . . . . Slashing Weapon 22 | . . . 1 2 . 2 . 7 1 5 . . 2 2 Piercing Weapon 3 | . . . . . . . . . . . . . . 3 Special Melee Weapon . | . . . . . . . . . . . . . . . Unidentified Prototypes 8 | . . . 1 1 . . 1 . . . 3 1 1 . Parts Lost 57 | . 2 . 3 10 . . 1 3 12 . . 1 12 13 Power 7 | . . . . 2 . . . . 1 . . . 2 2 Propulsion 8 | . 1 . 1 . . . . . 1 . . . 3 2 Utility 20 | . 1 . . 3 . . . . 5 . . . 5 6 Weapon 22 | . . . 2 5 . . 1 3 5 . . 1 2 3 Highest Loss Streak 11 | . 1 . 2 3 . . 1 1 5 . . 1 7 11 To Critical Strikes 2 | . . . . . . . 1 . . . . . . 1 Average Slot Usage (%) 90 | . 95 100 99 97 91 92 92 87 78 89 94 93 74 69 Engine 2 | . 14 11 9 1 . . . . . . . . . 3 Core 4 | . . . . 5 7 7 7 5 4 5 5 5 3 . Leg 1 | . . . 2 10 . . . . . . . . . . Wheel 8 | . 27 22 13 2 7 7 7 10 8 17 8 . . . Hover 2 | . . . . . . . . . . . 8 17 16 9 Device 7 | . 9 11 9 5 6 6 3 4 10 11 11 10 7 3 Storage 6 | . 15 11 9 7 7 7 7 5 5 5 5 5 5 5 Processor 14 | . . . 8 21 23 23 23 17 9 8 11 11 13 10 Hackware 7 | . . . . 5 7 7 7 11 11 11 11 11 10 20 Protection 4 | . . . 9 4 . . 3 5 6 7 5 5 3 . Ballistic Gun 20 | . 24 44 34 28 29 25 30 19 9 5 5 5 3 . Slashing Weapon 3 | . . . . 1 . 4 . 2 2 12 17 14 6 2 Peak Build Rating 102 | 7 11 15 29 48 41 45 49 79 79 72 86 86 102 82 Average Rating 50 | 5 8 14 23 42 40 41 44 67 68 65 77 84 79 68 On Entrance 42 | . 7 11 15 29 36 41 45 44 79 54 71 86 76 41 Naked Turns . | . . . . . . . . . . . . . . . Heaviest Build 67 | 14 34 36 47 54 41 46 46 53 67 54 50 55 67 47 Greatest Support 56 | 20 20 20 30 30 28 28 28 56 56 50 50 33 56 28 Greatest Overweight (x) 4 | . 4 1 4 3 1 1 1 . 1 1 4 1 1 2 Average Overweight (x) . | . . 1 2 1 1 1 1 . . . . 1 . . Largest Inventory Capacity 15 | 8 15 15 15 15 15 15 15 15 15 15 15 15 15 15 Average Capacity 14 | 7 10 15 15 15 15 15 15 15 15 15 15 15 15 15 Most Carried 15 | 8 15 15 15 15 12 15 15 15 15 15 15 15 15 15 Average Carried 13 | 5 8 14 14 14 11 13 14 14 13 13 14 14 14 12 Final Capacity 15 | 8 15 15 15 15 15 15 15 15 15 15 15 15 15 15 Final Carried 15 | 8 15 15 15 13 11 15 15 15 10 15 15 14 15 14 Class Distribution -------------------- 16% | Hacker-Mutant 11% | Hacker-Skirmisher 11% | Tank 11% | Gunner 10% | Hacker-Assassin 9% | Skirmisher 6% | Assassin 6% | Mutant 4% | Derelict-Mutant 4% | Scavenger-Skirmisher Dominant Class ---------------- Mutant | -10/Materials Gunner | -9/Materials Tank | -8/Materials Gunner | -7/Factory Skirmisher | -7/Lower Caves Assassin | -6/Zion Scavenger-Skirmisher | -5/Proximity Caves Hacker-Assassin | -5/Factory Hacker-Mutant | -5/Upper Caves Derelict-Mutant | -5/Upper Caves Derelict-Mutant | -5/Zhirov Hacker-Mutant | -4/Proximity Caves Hacker-Assassin | -4/Factory Hacker-Mutant | -4/Armory Resources | -11 -10 -9 -8 -7 -7 -6 -5 -5 -5 -5 -5 -4 -4 -4 ----------- Run | Yrd Mat Mat Mat Fac Low Zio Pro Fac Upp Upp Zhi Pro Fac Arm Matter Collected 6589 | 355 455 206 1769 1216 . 205 312 908 634 75 . 45 320 89 Remotely 395 | . . . . . . . . . 82 75 . 45 193 . Salvage Created 5648 | 163 427 301 1400 1004 . . 226 1108 695 . . . 265 59 Parts 307 | 21 26 19 80 45 . . 10 61 20 . . . 19 6 Haulers Intercepted 2 | . 1 . . . . . . 1 . . . . . . Recyclers Shooed 11 | . 2 . 2 . . . . 4 . . . . 3 . Parts Field Recycled . | . . . . . . . . . . . . . . . Retrieved Matter . | . . . . . . . . . . . . . . . Parts Self-Destructed 36 | . . . . . . . 19 . 17 . . . . . Prevented 6 | . . . . . . . 2 . 4 . . . . . Kills | -11 -10 -9 -8 -7 -7 -6 -5 -5 -5 -5 -5 -4 -4 -4 ------- Run | Yrd Mat Mat Mat Fac Low Zio Pro Fac Upp Upp Zhi Pro Fac Arm Combat Hostiles Destroyed 101 | . 8 5 26 19 . . 7 13 16 . . . 5 2 Melee 4 | . . . . . . . . . 1 . . . 3 . Guns 84 | . 8 5 26 19 . . 6 13 5 . . . . 2 Cannons 2 | . . . . . . . . . . . . . 2 . AOE 11 | . . . . . . . 1 . 10 . . . . . Classes Destroyed 19 | 3 5 2 4 3 . . 1 . . . . . 1 . Worker 6 | 2 . . . 1 . . . 3 . . . . . . Builder 3 | . 1 . 2 . . . . . . . . . . . Tunneler 4 | 3 1 . . . . . . . . . . . . . Hauler 2 | . 1 . . . . . . 1 . . . . . . Recycler 5 | 1 1 . 1 . . . . 1 . . . . 1 . Mechanic 1 | . . . 1 . . . . . . . . . . . Operator 1 | . . . . 1 . . . . . . . . . . Drone 1 | . . . . . . . 1 . . . . . . . Watcher 10 | . 2 2 3 1 . . . 1 . . . . 1 . Swarmer 23 | . 6 . 5 3 . . 2 1 4 . . . . 2 Cutter 3 | . . . . . . . . . . . . . 3 . Grunt 33 | . 2 2 10 6 . . 1 5 7 . . . . . Brawler 4 | . . . . 2 . . . . 2 . . . . . Duelist 3 | . . 1 2 . . . . . . . . . . . Protector 1 | . . . 1 . . . . . . . . . . . Sentry 13 | . . 2 5 3 . . 1 1 1 . . . . . Specialist 3 | . . . 2 . . . . . . . . . 1 . Hunter 6 | . . . 1 1 . . 2 . 2 . . . . . Programmer 11 | . . . . 4 . . . 6 . . . . 1 . Best Kill Streak 8 | 6 3 2 8 4 . . 2 7 5 . . . 4 1 Combat Bots Only 5 | . 3 2 5 3 . . 2 5 5 . . . 4 1 Max Kills in Single Turn 3 | 1 1 1 2 2 . . 1 1 3 . . . 2 1 Gunslinging 1 | . . . 1 1 . . . . . . . . . . Exploded 3 | . . . . . . . 1 . 3 . . . . . Melee 2 | . . . . . . . . . 1 . . . 2 . Uniques/NPCs Destroyed . | . . . . . . . . . . . . . . . Combat | -11 -10 -9 -8 -7 -7 -6 -5 -5 -5 -5 -5 -4 -4 -4 -------- Run | Yrd Mat Mat Mat Fac Low Zio Pro Fac Upp Upp Zhi Pro Fac Arm Hostile Shots Fired 1129 | . 25 13 119 324 . . 9 82 94 . . 15 311 137 Missed 436 | . 2 5 36 124 . . 4 25 24 . . 5 173 38 Damage Taken 10610 | . 319 124 1110 2279 . . 116 1363 1656 . . 319 1916 1408 Core 2046 | . 69 34 180 237 . . . 195 275 . . . 642 414 Absorbed by Shields . | . . . . . . . . . . . . . . . Redirected to Shielding 154 | . . . . . . . . . . . . . 106 48 Regen/Repaired (Parts) 256 | . . . . . . . . 256 . . . . . . Core Remaining (%) 74 | 100 72 91 67 . . . 66 . . . . 48 . . Volleys Fired 317 | 13 31 12 79 53 . . 12 41 27 . . 2 30 17 Largest 4 | 2 2 4 4 4 . . 4 4 4 . . 3 2 3 Hottest 173 | 60 60 92 94 107 . . 122 154 173 . . 103 85 86 Shots Fired 997 | 26 62 50 313 211 1 . 48 149 77 . . 5 33 22 Gun 940 | 26 62 50 313 211 1 . 46 148 57 . . 2 2 22 Cannon 31 | . . . . . . . . . . . . . 31 . Launcher 26 | . . . . . . . 2 1 20 . . 3 . . Special . | . . . . . . . . . . . . . . . Kinetic 901 | 13 51 50 313 211 1 . 46 140 36 . . 2 33 5 Thermal 41 | 13 11 . . . . . . . . . . . . 17 Explosive 26 | . . . . . . . 2 1 20 . . 3 . . Electromagnetic 29 | . . . . . . . . 8 21 . . . . . Robot Hit Streak 20 | 7 5 7 7 20 . . 4 15 17 . . 1 7 3 Robot Miss Streak 7 | 2 3 2 5 5 . . 5 7 2 . . 2 2 3 Penetration Max 1 | . . . . . . . . 1 1 . . . . . Secondary Targets 15 | . . . 6 4 . . . 4 1 . . . . . Max Gunslinging Chain 1 | . . . 1 1 . . . 1 1 . . . . . Shots Hit Robots 585 | 18 30 28 165 131 . . 21 91 57 . . 4 31 9 Core Hits 276 | 7 19 10 68 50 . . 18 45 42 . . 2 10 5 Critical Kills 6 | . . . 1 . . . . 4 1 . . . . . Critical Parts Destroyed 10 | . 2 . 1 1 . . . 4 2 . . . . . Critical Strikes 22 | . 2 . 2 2 . . . 8 5 . . . 3 . Destroy 17 | . 2 . 2 2 . . . 8 3 . . . . . Blast 1 | . . . . . . . . . . . . . 1 . Corrupt 1 | . . . . . . . . . 1 . . . . . Sever 3 | . . . . . . . . . 1 . . . 2 . Melee Attacks 77 | . . . 5 6 . 1 . 31 5 . . 3 19 7 Impact . | . . . . . . . . . . . . . . . Slashing 71 | . . . 5 6 . 1 . 31 5 . . 3 19 1 Piercing 6 | . . . . . . . . . . . . . . 6 Sneak Attacks 3 | . . . . 1 . . . 2 . . . . . . Combat Hostiles . | . . . . . . . . . . . . . . . Follow-up Attacks 3 | . . . . . . . . . . . . . 3 . Damage Inflicted 12149 | 214 505 452 2522 2407 . . 458 2032 2051 . . 120 1256 132 Guns 8949 | 214 424 452 2517 2350 . . 332 1702 776 . . . 50 132 Cannons 873 | . . . . . . . . . . . . . 873 . Explosions 1562 | . 81 . 4 . . . 126 183 1122 . . 46 . . Melee 759 | . . . . 54 . . . 147 153 . . 74 331 . Ramming 6 | . . . 1 3 . . . . . . . . 2 . Kinetic 9231 | 122 345 452 2517 2350 . . 332 1626 539 . . . 923 25 Thermal 452 | 92 106 . . . . . . 147 . . . . . 107 Explosive 1334 | . . . 4 . . . 126 36 1122 . . 46 . . Electromagnetic 367 | . 54 . . . . . . 76 237 . . . . . Impact . | . . . . . . . . . . . . . . . Slashing 759 | . . . . 54 . . . 147 153 . . 74 331 . Piercing . | . . . . . . . . . . . . . . . Highest Corruption 9 | . . 1 . 6 6 6 . 5 4 1 1 1 9 9 Average Corruption 2 | . . 1 . 2 6 6 . 3 1 1 1 1 6 9 Corruption Purged 7 | . . . . . . . . 3 4 . . . . . Corruption Blocked . | . . . . . . . . . . . . . . . Effects 105 | . . 2 . 26 2 3 . 23 8 2 2 6 13 18 Message Errors 25 | . . . . 4 1 1 . 6 3 . . 2 4 4 Matter Fused 17 | . . . . 4 . 1 . 5 1 1 1 . 2 2 Heat Flow Errors 10 | . . . . 3 . . . 2 1 . . . 1 3 Energy Discharges 16 | . . . . 7 . 1 . 3 . . . 1 1 3 Parts Rejected 3 | . . . . 1 . . . . . . . . 1 1 Parts Fused 2 | . . . . . . . . . . . 1 . 1 . Data Loss (minor) 14 | . . . . 5 . . . 1 2 1 . 2 2 1 Data Loss (major) 2 | . . . . . . . . . . . . . . 2 Misfires 10 | . . 2 . 1 1 . . 2 1 . . 1 1 1 Alerts 4 | . . . . 1 . . . 3 . . . . . . Weapon Failures 2 | . . . . . . . . 1 . . . . . 1 Overload Shots . | . . . . . . . . . . . . . . . Overflow Damage 122 | . 1 . . 24 . . 4 60 5 . . 5 23 . Projectiles 23 | . . . . . . . . . . . . . 23 . Explosions 25 | . 1 . . . . . 4 15 5 . . . . . Melee 74 | . . . . 24 . . . 45 . . . 5 . . Knockbacks 18 | . . . . . . . . . . . . . 18 . Impact . | . . . . . . . . . . . . . . . Kinetic 15 | . . . . . . . . . . . . . 15 . Secondary 3 | . . . . . . . . . . . . . 3 . Self-Inflicted Damage 448 | . 63 . . 1 . . . 121 207 . . 55 1 . Shots 12 | . 2 . . . . . . 2 7 . . 1 . . Rammed 3 | . . . 1 1 . . . . . . . . 1 . Targets Rammed 3 | . . . 1 1 . . . . . . . . 1 . Kicked . | . . . . . . . . . . . . . . . Crushed . | . . . . . . . . . . . . . . . Highest Temperature 540 | . 108 156 87 271 . . 102 540 315 . . 30 259 193 Average Temperature 75 | . 35 63 19 74 . . 37 141 112 . . 14 53 73 Received Heat Transfer 1632 | . 114 36 378 363 . . 27 135 372 . . 30 93 84 Effects 6 | . . . . 4 . . . 2 . . . . . . Shutdowns 1 | . . . . . . . . 1 . . . . . . Energy Bleed 1 | . . . . 1 . . . . . . . . . . Interference 3 | . . . . 3 . . . . . . . . . . Damage (core) 1 | . . . . . . . . 1 . . . . . . Siege Activations . | . . . . . . . . . . . . . . . Robots Corrupted . | . . . . . . . . . . . . . . . Combat Hostiles . | . . . . . . . . . . . . . . . Parts Fried . | . . . . . . . . . . . . . . . Impact Corruptions . | . . . . . . . . . . . . . . . Robots Melted . | . . . . . . . . . . . . . . . Combat Hostiles . | . . . . . . . . . . . . . . . Parts Melted 2 | . . . . . . . 1 . . . . . . 1 Heat Transferred 821 | 200 225 . . . . . . 100 . . . . . 296 Parts Sabotaged . | . . . . . . . . . . . . . . . Parts Stolen . | . . . . . . . . . . . . . . . Parts Stripped . | . . . . . . . . . . . . . . . Power Chain Reactions 1 | . 1 . . . . . . . . . . . . . Alert | -11 -10 -9 -8 -7 -7 -6 -5 -5 -5 -5 -5 -4 -4 -4 ------- Run | Yrd Mat Mat Mat Fac Low Zio Pro Fac Upp Upp Zhi Pro Fac Arm Peak Influence 549 | 30 305 336 549 348 . . . 457 . . . . 132 120 Initial 300 | . 19 89 141 246 . . . 300 . . . . 21 25 Average 177 | 12 146 216 306 187 . . . 165 . . . . 24 53 Maximum Alert Level 2 | . 1 1 2 1 . . . 2 . . . . . . Low Security (%) 59 | 100 80 41 26 50 . . . 64 . . . . 100 100 Level 1 33 | . 19 58 41 49 . . . 34 . . . . . . Level 2 6 | . . . 31 . . . . 1 . . . . . . Level 3 . | . . . . . . . . . . . . . . . Level 4 . | . . . . . . . . . . . . . . . Level 5 . | . . . . . . . . . . . . . . . High Security . | . . . . . . . . . . . . . . . Max Security . | . . . . . . . . . . . . . . . Squads Dispatched 32 | . . 1 5 9 . . . 8 . . . . 4 5 Investigation 7 | . . 1 1 2 . . . 1 . . . . . 2 Extermination 10 | . . . . 4 . . . 4 . . . . 1 1 Reinforcement 12 | . . . 3 2 . . . 3 . . . . 2 2 Assault 1 | . . . 1 . . . . . . . . . . . Garrison 2 | . . . . 1 . . . . . . . . 1 . Intercept . | . . . . . . . . . . . . . . . Searches Triggered . | . . . . . . . . . . . . . . . Construction Impeded . | . . . . . . . . . . . . . . . Haulers Reinforced 1 | . . . . . . . . 1 . . . . . . Active Scanning Responses . | . . . . . . . . . . . . . . . Cargo Convoy Interrupts . | . . . . . . . . . . . . . . . Stealth | -11 -10 -9 -8 -7 -7 -6 -5 -5 -5 -5 -5 -4 -4 -4 --------- Run | Yrd Mat Mat Mat Fac Low Zio Pro Fac Upp Upp Zhi Pro Fac Arm Distress Signals 9 | . . . 1 2 . . . 3 . . . . 3 . Communications Jammed . | . . . . . . . . . . . . . . . Distress Signals . | . . . . . . . . . . . . . . . Times Spotted 217 | . 20 11 49 31 . . 10 26 25 . . 7 22 16 Peak Tracking Total 12 | . 3 5 5 5 . . 4 5 9 . . 4 12 9 Tactical Retreats 21 | . 2 1 2 3 . . . 3 4 . . 1 2 3 Traps | -11 -10 -9 -8 -7 -7 -6 -5 -5 -5 -5 -5 -4 -4 -4 ------- Run | Yrd Mat Mat Mat Fac Low Zio Pro Fac Upp Upp Zhi Pro Fac Arm Traps Triggered 8 | . 2 . . 3 . . . . . . . . 2 1 Indirectly . | . . . . . . . . . . . . . . . Trap Hack Attempts . | . . . . . . . . . . . . . . . Triggered . | . . . . . . . . . . . . . . . Disarmed . | . . . . . . . . . . . . . . . Reprogrammed 20 | . . . . . . . . 10 . . . . . 10 Reused 4 | . . . . . . . . 2 1 . . . . 1 Traps Extracted . | . . . . . . . . . . . . . . . Installed 3 | . . . . . . . . . 3 . . . . . Triggered 7 | . . . . . . . . 2 2 . . 2 . 1 Most Traps Carried 3 | . . . . . . . . . 3 . . . . . Machines | -11 -10 -9 -8 -7 -7 -6 -5 -5 -5 -5 -5 -4 -4 -4 ---------- Run | Yrd Mat Mat Mat Fac Low Zio Pro Fac Upp Upp Zhi Pro Fac Arm Machines Disabled 8 | . 2 . 2 . . . . 3 . . . . . 1 Max in Single Turn 2 | . 1 . 2 . . . . 1 . . . . . 1 Garrison Access 3 | . . . 1 1 . . . 1 . . . . . . Machines Repaired . | . . . . . . . . . . . . . . . Machines Dismantled . | . . . . . . . . . . . . . . . Machines Sabotaged . | . . . . . . . . . . . . . . . Overloaded Fab Kills . | . . . . . . . . . . . . . . . Hacking | -11 -10 -9 -8 -7 -7 -6 -5 -5 -5 -5 -5 -4 -4 -4 --------- Run | Yrd Mat Mat Mat Fac Low Zio Pro Fac Upp Upp Zhi Pro Fac Arm Machines Accessed 52 | . 8 1 8 7 . . . 13 . 1 9 . 2 3 Terminals 32 | . 8 1 7 4 . . . 8 . . . . 2 2 Fabricators 2 | . . . . 1 . . . 1 . . . . . . Repair Stations 3 | . . . . . . . . 2 . . . . . 1 Recycling Units . | . . . . . . . . . . . . . . . Scanalyzers 2 | . . . . 1 . . . 1 . . . . . . Garrison Access 3 | . . . 1 1 . . . 1 . . . . . . Total Hacks 198 | . 22 5 21 14 . . . 66 . 1 48 . 7 14 Successful 133 | . 13 2 12 8 . . . 38 . 1 48 . 2 9 Failed 65 | . 9 3 9 6 . . . 28 . . . . 5 5 Catastrophic 9 | . 2 . 1 1 . . . 4 . . . . 1 . Database Lockouts . | . . . . . . . . . . . . . . . Manual 94 | . 20 5 10 11 . . . 32 . 1 1 . 8 6 Terminals 126 | . 22 5 18 9 . . . 53 . . . . 7 12 Fabricators 4 | . . . . 2 . . . 2 . . . . . . Repair Stations 7 | . . . . . . . . 5 . . . . . 2 Recycling Units . | . . . . . . . . . . . . . . . Scanalyzers 5 | . . . . 1 . . . 4 . . . . . . Garrison Access 7 | . . . 3 2 . . . 2 . . . . . . Terminal Hacks 92 | . 5 1 7 2 . . . 22 . 1 48 . . 6 Record 36 | . . . . . . . . . . . 36 . . . Part Schematic 4 | . . . . . . . . . . . 4 . . . Robot Analysis 4 | . . . . . . . . . . . 4 . . . Prototype ID Bank 14 | . 4 1 2 . . . . 3 . . 4 . . . Open Door 1 | . . . . . . . . . . 1 . . . . Level Access Points 1 | . . . 1 . . . . . . . . . . . Branch Access Points 4 | . . . 1 1 . . . 1 . . . . . 1 Terminal Index 1 | . . . . . . . . 1 . . . . . . Repair Station Index 1 | . . . . . . . . 1 . . . . . . Garrison Index 1 | . . . . . . . . 1 . . . . . . Alert Level 8 | . . . 1 1 . . . 5 . . . . . 1 Unreport Threat 2 | . . . 1 . . . . 1 . . . . . . Locate Traps 6 | . 1 . 1 . . . . 3 . . . . . 1 Reprogram Traps 4 | . . . . . . . . 2 . . . . . 2 Security Status 1 | . . . . . . . . 1 . . . . . . Patrol Status 1 | . . . . . . . . 1 . . . . . . Recall Extermination 1 | . . . . . . . . . . . . . . 1 Zone Layout 2 | . . . . . . . . 2 . . . . . . Fabricator Hacks . | . . . . . . . . . . . . . . . Repair Station Hacks 5 | . . . . . . . . 4 . . . . . 1 Scan Component 2 | . . . . . . . . 2 . . . . . . Repair 2 | . . . . . . . . 2 . . . . . . Refit 1 | . . . . . . . . . . . . . . 1 Recycling Unit Hacks . | . . . . . . . . . . . . . . . Scanalyzer 2 | . . . . . . . . 2 . . . . . . Insert Component 1 | . . . . . . . . 1 . . . . . . Analyze 1 | . . . . . . . . 1 . . . . . . Garrison Access Hacks 3 | . . . 1 1 . . . 1 . . . . . . Seal Access 3 | . . . 1 1 . . . 1 . . . . . . Unauthorized Hacks 31 | . 8 1 4 5 . . . 9 . . . . 2 2 Terminals 27 | . 8 1 4 3 . . . 7 . . . . 2 2 Assimilate 1 | . . . . . . . . 1 . . . . . . Botnet 25 | . 7 1 4 3 . . . 6 . . . . 2 2 Detonate 1 | . 1 . . . . . . . . . . . . . Fabricators 3 | . . . . 1 . . . 2 . . . . . . Report 2 | . . . . 1 . . . 1 . . . . . . Download 1 | . . . . . . . . 1 . . . . . . Repair Stations . | . . . . . . . . . . . . . . . Recycling Units . | . . . . . . . . . . . . . . . Scanalyzers 1 | . . . . 1 . . . . . . . . . . Extract 1 | . . . . 1 . . . . . . . . . . Garrison Access . | . . . . . . . . . . . . . . . Data Cores Recovered . | . . . . . . . . . . . . . . . Used . | . . . . . . . . . . . . . . . Hacking Detections 34 | . 7 1 7 6 . . . 8 . . . . 2 3 Full Trace Events 5 | . 2 1 1 1 . . . . . . . . . . Feedback Events 1 | . . 1 . . . . . . . . . . . . Corruption 1 | . . 1 . . . . . . . . . . . . Feedback Blocked . | . . . . . . . . . . . . . . . Robot Schematics Acquired 4 | . . . . . . 3 . 1 . . . . . . Robots Built . | . . . . . . . . . . . . . . . Authchips . | . . . . . . . . . . . . . . . Time . | . . . . . . . . . . . . . . . Total Robot Build Rating . | . . . . . . . . . . . . . . . Part Schematics Acquired 20 | . . . . 1 . 14 . 1 . . 4 . . . Parts Built . | . . . . . . . . . . . . . . . Authchips . | . . . . . . . . . . . . . . . Time . | . . . . . . . . . . . . . . . Total Part Build Rating . | . . . . . . . . . . . . . . . Parts Repaired 2 | . . . . . . . . 2 . . . . . . Time 44 | . . . . . . . . 44 . . . . . . Parts Recycled . | . . . . . . . . . . . . . . . Recycled Matter . | . . . . . . . . . . . . . . . Retrieved Matter . | . . . . . . . . . . . . . . . Retrieved Components . | . . . . . . . . . . . . . . . Parts Scanalyzed 1 | . . . . . . . . 1 . . . . . . Part Schematics Acquired 1 | . . . . . . . . 1 . . . . . . Parts Damaged . | . . . . . . . . . . . . . . . Bothacking | -11 -10 -9 -8 -7 -7 -6 -5 -5 -5 -5 -5 -4 -4 -4 ------------ Run | Yrd Mat Mat Mat Fac Low Zio Pro Fac Upp Upp Zhi Pro Fac Arm Used RIF Installer . | . . . . . . . . . . . . . . . Robots Hacked . | . . . . . . . . . . . . . . . Non-combat . | . . . . . . . . . . . . . . . Combat . | . . . . . . . . . . . . . . . Robot Hacks Applied . | . . . . . . . . . . . . . . . Relay Couplers Released . | . . . . . . . . . . . . . . . Fabnet Peak Effective % . | . . . . . . . . . . . . . . . Robots Rewired . | . . . . . . . . . . . . . . . Allies Hacked . | . . . . . . . . . . . . . . . Hacks Repelled . | . . . . . . . . . . . . . . . Allies | -11 -10 -9 -8 -7 -7 -6 -5 -5 -5 -5 -5 -4 -4 -4 -------- Run | Yrd Mat Mat Mat Fac Low Zio Pro Fac Upp Upp Zhi Pro Fac Arm Total Allies 11 | . . . . . . 10 . 1 . . . . . . Largest Group 10 | . . . . . . 10 10 1 . . . . . . Highest-Rated Group 269 | . . . . . . 269 269 26 . . . . . . Highest-Rated Ally 39 | . . . . . . 39 39 26 . . . . . . Total Orders . | . . . . . . . . . . . . . . . Ally Attacks 71 | . . . . . . . 71 . . . . . . . Total Damage 1013 | . . . . . . . 1013 . . . . . . . Kills 12 | . . . . . . . 12 . . . . . . . Allies Corrupted . | . . . . . . . . . . . . . . . Allies Melted 1 | . . . . . . . 1 . . . . . . . Intel | -11 -10 -9 -8 -7 -7 -6 -5 -5 -5 -5 -5 -4 -4 -4 ------- Run | Yrd Mat Mat Mat Fac Low Zio Pro Fac Upp Upp Zhi Pro Fac Arm Robot Analysis Total 4 | . . . . . . . . . . . 4 . . . Derelict Logs Recovered 7 | . . . . . . 2 1 . 3 1 . . . . Drone Launches . | . . . . . . . . . . . . . . . Drone Recoveries . | . . . . . . . . . . . . . . . Exploration | -11 -10 -9 -8 -7 -7 -6 -5 -5 -5 -5 -5 -4 -4 -4 ------------- Run | Yrd Mat Mat Mat Fac Low Zio Pro Fac Upp Upp Zhi Pro Fac Arm Turns Passed 13276 | 150 720 351 1472 1865 149 999 1188 2339 1343 654 228 768 494 556 Spaces Moved 9833 | 112 676 290 891 944 127 830 975 1676 1014 636 227 709 343 383 Core 2 | 1 1 . . . . . . . . . . . . . Treads 7 | . . . 7 . . . . . . . . . . . Legs 613 | . . . 88 525 . . . . . . . . . . Wheels 7697 | 111 675 290 796 419 127 830 975 1676 1014 636 117 . . 31 Hover 1514 | . . . . . . . . . . . 110 709 343 352 Flight . | . . . . . . . . . . . . . . . Fastest Speed 40 | 50 80 95 95 115 115 115 115 100 90 90 90 92 40 56 Average Speed 108 | 79 84 95 124 159 115 115 115 100 106 90 91 92 87 101 Slowest Speed 330 | 80 250 95 330 190 115 115 115 100 115 105 260 92 101 146 Overloaded Moves . | . . . . . . . . . . . . . . . Propulsion Burnouts . | . . . . . . . . . . . . . . . Robots Hopped . | . . . . . . . . . . . . . . . Cave-ins Triggered . | . . . . . . . . . . . . . . . Teleports 1 | . . . . . . . . . . . . 1 . . Exploration Rate (%) 50 | 5 98 25 63 26 15 85 95 38 85 72 62 60 9 16 Regions Visited 14 Branch Regions 8 Pre-discovered Areas 5 | . . . . . . 2 . . . . 3 . . . Known Exits Taken 11 | . . . 1 1 1 1 1 1 1 1 1 1 1 . Unknown Exits Taken 3 | 1 1 1 . . . . . . . . . . . . Scrap Searched 10 | . . . . . . 2 1 . 4 2 . 1 . . Spaces Dug 46 | . . . 5 5 . . . 27 . . . . 5 4 Terrain Destroyed 378 | . 4 . 43 6 . . 14 64 191 . . 40 12 4 Melee 45 | . . . 5 5 . . . 26 . . . . 5 4 Projectile 17 | . . . . 1 . . 1 6 2 . . . 7 . AOE 316 | . 4 . 38 . . . 13 32 189 . . 40 . . Terrain Rammed . | . . . . . . . . . . . . . . . Walls Destroyed . | . . . . . . . . . . . . . . . Machines Disabled . | . . . . . . . . . . . . . . . Actions | -11 -10 -9 -8 -7 -7 -6 -5 -5 -5 -5 -5 -4 -4 -4 --------- Run | Yrd Mat Mat Mat Fac Low Zio Pro Fac Upp Upp Zhi Pro Fac Arm Total 11793 | 146 781 345 1122 1184 129 872 1014 2213 1220 712 247 815 480 513 Wait 1168 | . 22 38 97 117 . 29 13 409 133 59 . 98 67 86 Move 9819 | 111 675 289 890 943 126 829 974 1675 1013 635 226 708 342 383 Hop . | . . . . . . . . . . . . . . . Pick Up 91 | 12 20 3 12 8 . 5 1 8 6 6 4 . 1 5 Fast Attach 68 | 6 9 . 6 8 . 2 1 4 4 3 7 . 12 6 Attach 56 | 1 2 2 6 9 2 . 1 6 15 . . 1 4 7 Detach 24 | . 3 . 1 1 . . . 2 8 1 . . 7 1 Swap 81 | . 2 . 8 20 1 3 9 28 2 3 1 3 . 1 Drop 90 | 3 17 1 17 18 . 3 3 9 4 4 9 . 2 . Fire 317 | 13 31 12 79 53 . . 12 41 27 . . 2 30 17 Melee 72 | . . . 5 6 . 1 . 31 5 . . 3 14 7 Ram 3 | . . . 1 1 . . . . . . . . 1 . Kick . | . . . . . . . . . . . . . . . Crush . | . . . . . . . . . . . . . . . Escape Stasis . | . . . . . . . . . . . . . . . Rewire 1 | . . . . . . . . . . 1 . . . . Trap 3 | . . . . . . . . . 3 . . . . . Miscellaneous . | . . . . . . . . . . . . . . . Route ------- -11/Scrapyard -10/Materials (discovered 5 exits: *Mat x3 / [*Min x2]) -9/Materials -8/Materials (discovered 3 exits: *Fac x3) -7/Factory (discovered 4 exits: *Sto x2 / *Low x2) -7/Lower Caves -6/Zion -5/Proximity Caves -5/Factory (discovered 5 exits: *Fac x3 / *Upp x2) -5/Upper Caves -5/Upper Caves (discovered 2 exits: *Fac / *Zhi) -5/Zhirov -4/Proximity Caves -4/Factory (discovered 2 exits: Upp / *Arm) -4/Armory History --------- Turn | Location | Event 8 | -11/Scrapyard | Discovered new exit (range 14) 151 | -11/Scrapyard | Entered Materials 188 | -10/Materials | Discovered new exit (range 8) 304 | -10/Materials | Build established: Mutant 355 | -10/Materials | Discovered new exit (range 16) 413 | -10/Materials | Discovered new exit (range 16) 549 | -10/Materials | Discovered new exit (range 16) 635 | -10/Materials | Discovered new exit (range 16) 871 | -10/Materials | Entered another Materials area 871 | -9/Materials | Evolved 2 slots: Weapon x2 1146 | -9/Materials | Build established: Gunner 1198 | -9/Materials | Discovered new exit (range 16) 1222 | -9/Materials | Entered another Materials area 1222 | -8/Materials | Evolved 2 slots: Utility x2 1540 | -8/Materials | Build established: Tank 2414 | -8/Materials | Identified exit to Factory 2422 | -8/Materials | First assault squad dispatched 2694 | -8/Materials | Entered Factory 2694 | -7/Factory | Evolved 2 slots: Utility x2 2991 | -7/Factory | Build established: Skirmisher 3499 | -7/Factory | Garrison activated, responded to threat 4180 | -7/Factory | Build established: Gunner 4248 | -7/Factory | Discovered new exit (range 5) 4252 | -7/Factory | Identified exit to Storage 4309 | -7/Factory | Identified exit to Lower Caves 4520 | -7/Factory | Lost 3 parts (1u2w) 4559 | -7/Factory | Entered Lower Caves 4699 | -7/Lower Caves | A Derelict revealed a hidden shortcut to a safe place 4707 | -7/Lower Caves | Identified exit to Zion 4708 | -7/Lower Caves | Entered Zion 4778 | -6/Zion | System corruption cleaned by Quarantine Array 4793 | -6/Zion | Acquired unknown access codes intercepted by a Zionite 4824 | -6/Zion | Given the Hacking Drone Bay 4824 | -6/Zion | Found Prototype Device 4871 | -6/Zion | Build established: Skirmisher 5009 | -6/Zion | Learned location of Armory (-4) 5031 | -6/Zion | Learned 4 Factory zone layouts 5150 | -6/Zion | Met Imprinter 5187 | -6/Zion | Learned location of Extension (-6) 5253 | -6/Zion | Gained Derelict followers 5388 | -6/Zion | Build established: Assassin 5398 | -6/Zion | Gained Derelict followers 5457 | -6/Zion | Gained Derelict followers 5458 | -6/Zion | Learned Factory emergency access door positions 5652 | -6/Zion | Discovered new exit (range 19) 5675 | -6/Zion | Identified exit to Proximity Caves 5707 | -6/Zion | Entered Proximity Caves 5707 | -5/Proximity Caves | Accompanied by 10 allies 5710 | -5/Proximity Caves | Spotter reported a threat 5710 | -5/Proximity Caves | Spotter reported a threat 5755 | -5/Proximity Caves | Lost 3 allies 5982 | -5/Proximity Caves | Build established: Gunner 6201 | -5/Proximity Caves | Lost 5 allies 6490 | -5/Proximity Caves | Attracted the attention of an 0b10 checkpoint 6595 | -5/Proximity Caves | Build established: Scavenger-Skirmisher 6640 | -5/Proximity Caves | Identified Hacking Drone Bay 6786 | -5/Proximity Caves | Discovered new exit (range 16) 6816 | -5/Proximity Caves | Identified exit to Factory 6895 | -5/Proximity Caves | Entered Factory 6895 | -5/Factory | Evolved 4 slots: Propulsion x2, Utility x2 6896 | -5/Factory | Identified exit to Factory 7195 | -5/Factory | Build established: Hacker-Skirmisher 7274 | -5/Factory | Identified exit to Upper Caves 7646 | -5/Factory | Build established: Hacker-Assassin 8049 | -5/Factory | Discovered exit to Factory (range 14) 8291 | -5/Factory | Repaired Arm. Huge Wheel 8604 | -5/Factory | Discovered exit to Factory (range 19) 8771 | -5/Factory | Repaired Arm. Huge Wheel 9234 | -5/Factory | Entered Upper Caves 9329 | -5/Upper Caves | Encountered a Warlord checkpoint 9502 | -5/Upper Caves | Build established: Hacker-Skirmisher 9768 | -5/Upper Caves | Attracted the attention of an 0b10 outpost 9769 | -5/Upper Caves | Learned location of 1 exit from Proximity Caves 9821 | -5/Upper Caves | Lost 4 parts (1u3w) 9980 | -5/Upper Caves | Learned Factory stockpile data 9995 | -5/Upper Caves | Learned 4 Factory zone layouts 10181 | -5/Upper Caves | Build established: Hacker-Mutant 10426 | -5/Upper Caves | Lost 5 parts (1p3u1w) 10466 | -5/Upper Caves | Discovered new exit (range 14) 10498 | -5/Upper Caves | Identified exit to Upper Caves 10577 | -5/Upper Caves | Entered another Upper Caves area 10620 | -5/Upper Caves | Discovered exit to Factory (range 16) 11084 | -5/Upper Caves | Build established: Derelict-Mutant 11178 | -5/Upper Caves | Discovered new exit (range 15) 11193 | -5/Upper Caves | Identified exit to Zhirov 11231 | -5/Upper Caves | Entered Zhirov 11231 | -5/Zhirov | Discovered new exit (range 3) 11248 | -5/Zhirov | Met Zhirov 11265 | -5/Zhirov | Learned location of Quarantine (-2) 11265 | -5/Zhirov | Learned location of Testing (-3) 11265 | -5/Zhirov | Learned location of Command (-1) 11285 | -5/Zhirov | Zhirov requested help retrieving the SGEMP Prototype 11306 | -5/Zhirov | Found Alien Artifact 11306 | -5/Zhirov | Identified Integrated Reactor 11306 | -5/Zhirov | Installed Integrated Reactor, increased core energy generation (+10) 11323 | -5/Zhirov | Found Alien Artifact 11458 | -5/Zhirov | Identified exit to Proximity Caves 11459 | -5/Zhirov | Entered Proximity Caves 11707 | -4/Proximity Caves | Build established: Hacker-Mutant 12124 | -4/Proximity Caves | Identified Transdimensional Reconstructor 12124 | -4/Proximity Caves | Warped through subspace 12125 | -4/Proximity Caves | Core integrity fell below 50% 12227 | -4/Proximity Caves | Entered Factory 12227 | -4/Factory | Evolved 2 slots: Propulsion x1, Utility x1 12228 | -4/Factory | Identified exit to Upper Caves 12228 | -4/Factory | Identified exit to Armory 12574 | -4/Factory | Lost 3 parts (1p1u1w) 12627 | -4/Factory | Garrison activated, responded to threat 12674 | -4/Factory | Lost 7 parts (1p3n3u) 12721 | -4/Factory | Core integrity fell below 50% 12721 | -4/Factory | Entered Armory 13255 | -4/Armory | Core integrity fell below 20% 13277 | -4/Armory | Self-destructed Last Messages --------------- 13268_ Critical hit (Destroy). 13268_ Cld. Gravmag System destroyed. 13268_ Slug penetrates Wall. 13268_ Adv. System Shield destroyed. 13269_ Acquired Autogun. 13269_ Penetrated by Slug. 13269_ M-28 Smith repairs G-67 Veteran. 13272_ Slug penetrates Wall. 13272_ Penetrated by Slug. 13272_ Autogun destroyed. 13272_ S-27 Virus destroyed. 13272_ Slug penetrates Wall. 13273_ Penetrated by Slug. 13273_ Autogun destroyed. 13273_ Arm. Huge Wheel destroyed. 13273_ System corrupted: Backup Laser III failed to cycle. 13275_ Slug penetrates Wall. 13276_ Penetrated by Slug. 13276_ Hacking Suite destroyed. 13276_ Imp. Melee Analysis Suite destroyed. Map ----- +----------------------------------------------------+ | ???????????????????????????????????????????###???? | | ????????????????????????????????????########"##### | | ????????????????????????????????????#" | | ????????????????????????????????????## """" | | ?????????????????????????????????????# "/ " | | ?????????????????????????????????????# "/ | | ?????????????????????????????????????# "//" | | ?????????????????????????????????????# """" | | ?????????????????????????????????????# | | ?????????????????????????????????????# | | ????????????????????????????????????## | | ????????????????????????????????????#" | | ????????????????????????????????????## | | ???????^??^??????????????????????????# | | ?????????? ??????????????????????????####+#####+## | | ?????????#^ ?????????????????????????????????# #? | | ?????????#^ ####+####???????????????????????# ## | | ????????? ^ ????^^????????????????# | | ??????^?? ????^^????????????????#### | | ?????????# ?????????????????????????? | | ??????????# #???######???######??????? | | ??????????# !!! ;#### ##### ######## | | ??????????# !!! Hg T" | | ??????????# !! mhY " | | ????????????????######h##;### ##### # | | ???????????????????# @ ###+############ | | ???????????????????# /g= + | | ???????????????????# #*= """ ######## | | ???????????????????# # " " """ !! = #??????? | | ???????????????????# """ !# "T" """ ! #??????? | | ???????????????????# """ # """ =!#??????? | | ???????????????????# """ # #??????? | | ???????????????????########################??????? | | ?????????????????????????????????????????????????? | | ?????????????????????????????????????????????????? | | ?????????????????????????????????????????????????? | | ?????????????????????????????????????????????????? | | ?????????????????????????????????????????????????? | | ?????????????????????????????????????????????????? | | ?????????????????????????????????????????????????? | | ?????????????????????????????????????????????????? | | ?????????????????????????????????????????????????? | | ?????????????????????????????????????????????????? | | | | | | | | | | | | | | | +----------------------------------------------------+ Best States ------------- Heat Dissipation 56 Energy Generation 31 Energy Capacity 325 Matter Stores 300 Matter Capacity 300 Sight Range 22 Robot Scan Range 16 Terrain Scan Density 10 Armor Coverage 450 Weapon Shielding 90 Evasion (%) 53 Targeting Accuracy 8 Melee Accuracy 6 Recoil Reduction 1 Offensive Hacking 44 Defensive Hacking 14 Authchip Count 1 Item Schematics ----------------- Lgt. Nuclear Core | -7/Factory | Extracted Falx | -6/Zion | Archive Adv. Cooling System | -6/Zion | Archive Adv. Signal Interpreter | -6/Zion | Archive Adv. Hacking Suite | -6/Zion | Archive Adv. Sensor Array | -6/Zion | Archive Point Defense System | -6/Zion | Archive Magnetic Acceleration Cannon | -6/Zion | Archive Adv. Focal Shield | -6/Zion | Archive Lgt. Antimatter Reactor | -6/Zion | Archive Imp. Proton Missile Launcher | -6/Zion | Archive Hyp. Gauss Cannon | -6/Zion | Archive Neutrino Core | -6/Zion | Archive Recoil Nullifier | -6/Zion | Archive Hyp. Gauss Rifle | -6/Zion | Archive Imp. Sensor Array | -5/Factory | Scanalyzed Assault Drone Bay | -5/Zhirov | Free Exp. Heat Sink | -5/Zhirov | Free Exp. Optical Array | -5/Zhirov | Free Imp. Arc Thrower | -5/Zhirov | Free Robot Schematics ------------------ R-10 Processor | -6/Zion | Archive G-47 Trooper | -6/Zion | Archive X-82 Rainmaker | -6/Zion | Archive Y-64 Sentinel | -5/Factory | Downloaded Fabricated ------------ Nothing Alien Tech Used ----------------- Integrated Reactor Transdimensional Reconstructor Achievements -------------- Ambidextrous Challenges ------------ None Game ------ Seed SpreadChromaticRegenerator Manual? 0 Play Time 02:19:37 Cumulative 87.5 hours Start 2025.03.08 @ 21:15:30 End 2025.03.09 @ 10:03:27 Sessions 5 Manual Loads 0 Difficulty Rogue Special Mode None Game No. 104 Rogue 97 Adventurer 0 Explorer 7 Win Type - Total 2 Types 2/0/0/0/0/0/0/0/0 Lore% 42 Gallery% 40 Achievement% 37 Wizard Run 0 Options --------- Layout 0 ASCII 0 Keyboard 0 Movement Mouse Keybinds 0 Fullscreen 1 Font 24/Smallcaps Map View 76x50 Zoom Use 0% Tactical HUD 1 Map Filters NONE Filters NONE Steam 1 RUN: 18d90449-9162-4df9-923c-e561dcfe8dd6